Workbook

Sheet 1-1
A2: المجموعة | D2: زجاج
A3: كود المجموعة | D3: =VLOOKUP(D2,#REF!,2,FALSE) -> 
A4: اسم الصنف | D4: طقم زجاج
A5: Barcode | D5: =IF(D6>0,(TEXT(LEFT(C8,3),"#000"))&(TEXT(RIGHT(C8,LEN(C8)-4),"#000"))&99&TEXT(D3,"#00")&TEXT(D6,"#000"),"") -> 
A6: كود الصنف | C6: =D3&"-"&D6 ->  | D6: 2
A7: العدد فى الكرتونة | D7: 3
A8: المورد | C8: =VLOOKUP(D8,#REF!,2,FALSE) -> 
F10: الرصيد
A11: الرئيسية | F11: عدد | G11: أخر سعر | H11: اجمالى جم
A12: الكود التالى | B12: =MAX(IF('[1]اجمالى المخزن'!$B$13:$B$1652=$D$3,'[1]اجمالى المخزن'!$C$13:$C$1652))+1 ->  | F12: =D152-F152 -> 182 | G12: =IFERROR(INDEX(E16:E152,MATCH(9.99999999999999E+307,E16:E152)),0) -> 100 | H12: =F12*G12 -> 18200
A14: التاريخ | B14: مسلسل الأذن | C14: البيان | D14: اضافة | F14: خصم | H14: سعر البيع | K14: الرصيد عدد
D15: عدد | E15: سعر | F15: عدد | G15: سعر | I15: اجمالى أضافة | J15: اجمالى خصم
I16: =D16*E16 -> 0 | J16: =F16*G16 -> 0 | K16: =D16 -> 0
A17: 2018-01-01 | B17: 5 | C17: أذن رقم رصيد افتتاجى 2018 | D17: 228 | E17: 97.5 | G17: 0 | I17: 22230 | J17: 0 | K17: =K16+D17-F17 -> 228
A18: 2018-01-08 | B18: 15 | C18: أذن مرتجعات رقم 282 | F18: -30 | G18: 97.5 | H18: 107.5 | I18: 0 | J18: -2925 | K18: 258
A19: 2018-01-08 | B19: 16 | C19: أذن مرتجعات رقم 0013319 | D19: 0 | F19: -3 | G19: 97.5 | H19: 162 | I19: 0 | J19: -292.5 | K19: 261
A20: 2018-01-18 | B20: 38 | C20: أذن رقم 240 | F20: 257 | G20: 97.5 | H20: 98 | I20: 0 | J20: 25057.5 | K20: 4
A21: 2018-03-10 | B21: 228 | C21: عميل نقدى أذن رقم 293 | F21: 1 | G21: 97.5 | H21: 97.5 | I21: 0 | J21: 97.5 | K21: 3
A22: 2018-03-15 | B22: 299 | C22: عميل نقدى أذن رقم 299 | F22: 1 | G22: 97.5 | H22: 97 | I22: 0 | J22: 97.5 | K22: 2
A23: 01/01/208 | B23: 100 | C23: رصيد بداية المدة | D23: 200 | E23: 100 | F23: 20 | G23: 100 | H23: 100 | I23: 20000 | J23: 2000 | K23: 182
I24: 0 | J24: 0 | K24: 182
I25: 0 | J25: 0 | K25: 182
I26: 0 | J26: 0 | K26: 182
I27: 0 | J27: 0 | K27: 182
I28: 0 | J28: 0 | K28: 182
I29: 0 | J29: 0 | K29: 182
I30: 0 | J30: 0 | K30: 182
I31: 0 | J31: 0 | K31: 182
I32: 0 | J32: 0 | K32: 182
I33: 0 | J33: 0 | K33: 182
I34: 0 | J34: 0 | K34: 182
I35: 0 | J35: 0 | K35: 182
I36: 0 | J36: 0 | K36: 182
I37: 0 | J37: 0 | K37: 182
I38: 0 | J38: 0 | K38: 182
I39: 0 | J39: 0 | K39: 182
I40: 0 | J40: 0 | K40: 182
I41: 0 | J41: 0 | K41: 182
I42: 0 | J42: 0 | K42: 182
I43: 0 | J43: 0 | K43: 182
I44: 0 | J44: 0 | K44: 182
I45: 0 | J45: 0 | K45: 182
I46: 0 | J46: 0 | K46: 182
I47: 0 | J47: 0 | K47: 182
I48: 0 | J48: 0 | K48: 182
I49: 0 | J49: 0 | K49: 182
I50: 0 | J50: 0 | K50: 182
I51: 0 | J51: 0 | K51: 182
I52: 0 | J52: 0 | K52: 182
I53: 0 | J53: 0 | K53: 182
I54: 0 | J54: 0 | K54: 182
I55: 0 | J55: 0 | K55: 182
I56: 0 | J56: 0 | K56: 182
I57: 0 | J57: 0 | K57: 182
I58: 0 | J58: 0 | K58: 182
I59: 0 | J59: 0 | K59: 182
I60: 0 | J60: 0 | K60: 182
I61: 0 | J61: 0 | K61: 182
I62: 0 | J62: 0 | K62: 182
I63: 0 | J63: 0 | K63: 182
I64: 0 | J64: 0 | K64: 182
I65: 0 | J65: 0 | K65: 182
I66: 0 | J66: 0 | K66: 182
I67: 0 | J67: 0 | K67: 182
I68: 0 | J68: 0 | K68: 182
I69: 0 | J69: 0 | K69: 182
I70: 0 | J70: 0 | K70: 182
I71: 0 | J71: 0 | K71: 182
I72: 0 | J72: 0 | K72: 182
I73: 0 | J73: 0 | K73: 182
I74: 0 | J74: 0 | K74: 182
I75: 0 | J75: 0 | K75: 182
I76: 0 | J76: 0 | K76: 182
I77: 0 | J77: 0 | K77: 182
I78: 0 | J78: 0 | K78: 182
I79: 0 | J79: 0 | K79: 182
I80: =D80*E80 -> 0 | J80: =F80*G80 -> 0 | K80: 182
I81: 0 | J81: 0 | K81: =K80+D81-F81 -> 182
I82: 0 | J82: 0 | K82: 182
I83: 0 | J83: 0 | K83: 182
I84: 0 | J84: 0 | K84: 182
I85: 0 | J85: 0 | K85: 182
I86: 0 | J86: 0 | K86: 182
I87: 0 | J87: 0 | K87: 182
I88: 0 | J88: 0 | K88: 182
I89: 0 | J89: 0 | K89: 182
I90: 0 | J90: 0 | K90: 182
I91: 0 | J91: 0 | K91: 182
I92: 0 | J92: 0 | K92: 182
I93: 0 | J93: 0 | K93: 182
I94: 0 | J94: 0 | K94: 182
I95: 0 | J95: 0 | K95: 182
I96: 0 | J96: 0 | K96: 182
I97: 0 | J97: 0 | K97: 182
I98: 0 | J98: 0 | K98: 182
I99: 0 | J99: 0 | K99: 182
I100: 0 | J100: 0 | K100: 182
I101: 0 | J101: 0 | K101: 182
I102: 0 | J102: 0 | K102: 182
I103: 0 | J103: 0 | K103: 182
I104: 0 | J104: 0 | K104: 182
I105: 0 | J105: 0 | K105: 182
I106: 0 | J106: 0 | K106: 182
I107: 0 | J107: 0 | K107: 182
I108: 0 | J108: 0 | K108: 182
I109: 0 | J109: 0 | K109: 182
I110: 0 | J110: 0 | K110: 182
I111: 0 | J111: 0 | K111: 182
I112: 0 | J112: 0 | K112: 182
I113: 0 | J113: 0 | K113: 182
I114: 0 | J114: 0 | K114: 182
I115: 0 | J115: 0 | K115: 182
I116: 0 | J116: 0 | K116: 182
I117: 0 | J117: 0 | K117: 182
I118: 0 | J118: 0 | K118: 182
I119: 0 | J119: 0 | K119: 182
I120: 0 | J120: 0 | K120: 182
I121: 0 | J121: 0 | K121: 182
I122: 0 | J122: 0 | K122: 182
I123: 0 | J123: 0 | K123: 182
I124: 0 | J124: 0 | K124: 182
I125: 0 | J125: 0 | K125: 182
I126: 0 | J126: 0 | K126: 182
I127: 0 | J127: 0 | K127: 182
I128: 0 | J128: 0 | K128: 182
I129: 0 | J129: 0 | K129: 182
I130: 0 | J130: 0 | K130: 182
I131: 0 | J131: 0 | K131: 182
I132: 0 | J132: 0 | K132: 182
I133: 0 | J133: 0 | K133: 182
I134: 0 | J134: 0 | K134: 182
I135: 0 | J135: 0 | K135: 182
I136: 0 | J136: 0 | K136: 182
I137: 0 | J137: 0 | K137: 182
I138: 0 | J138: 0 | K138: 182
I139: 0 | J139: 0 | K139: 182
I140: 0 | J140: 0 | K140: 182
I141: 0 | J141: 0 | K141: 182
I142: 0 | J142: 0 | K142: 182
I143: 0 | J143: 0 | K143: 182
I144: =D144*E144 -> 0 | J144: =F144*G144 -> 0 | K144: 182
I145: 0 | J145: 0 | K145: =K144+D145-F145 -> 182
I146: 0 | J146: 0 | K146: 182
I147: 0 | J147: 0 | K147: 182
I148: 0 | J148: 0 | K148: 182
I149: 0 | J149: 0 | K149: 182
I150: 0 | J150: 0 | K150: 182
I151: 0 | J151: 0 | K151: 182
D152: =SUM(D16:D151) -> 428 | F152: =SUM(F16:F151) -> 246 | I152: =SUM(I16:I151) -> 42230 | J152: =SUM(J16:J151) -> 24035

Sheet 1-2
A2: المجموعة | D2: زجاج
A3: كود المجموعة | D3: =VLOOKUP(D2,#REF!,2,FALSE) -> 
A4: اسم الصنف | D4: طقم خزف
A5: Barcode | D5: =IF(D6>0,(TEXT(LEFT(C8,3),"#000"))&(TEXT(RIGHT(C8,LEN(C8)-4),"#000"))&99&TEXT(D3,"#00")&TEXT(D6,"#000"),"") -> 
A6: كود الصنف | C6: =D3&"-"&D6 ->  | D6: 5
A7: العدد فى الكرتونة | D7: 12
A8: المورد | C8: =VLOOKUP(D8,#REF!,2,FALSE) -> 
F10: الرصيد
A11: الرئيسية | F11: عدد | G11: أخر سعر | H11: اجمالى جم
A12: الكود التالى | B12: =MAX(IF('[1]اجمالى المخزن'!$B$13:$B$1652=$D$3,'[1]اجمالى المخزن'!$C$13:$C$1652))+1 ->  | F12: =D152-F152 -> 576 | G12: =IFERROR(INDEX(E16:E152,MATCH(9.99999999999999E+307,E16:E152)),0) -> 100 | H12: =F12*G12 -> 57600
A14: التاريخ | B14: مسلسل الأذن | C14: البيان | D14: اضافة | F14: خصم | H14: سعر البيع | K14: الرصيد عدد
D15: عدد | E15: سعر | F15: عدد | G15: سعر | I15: اجمالى أضافة | J15: اجمالى خصم
I16: =D16*E16 -> 0 | J16: =F16*G16 -> 0 | K16: =D16 -> 0
A17: 2018-01-01 | B17: 3 | C17: أذن رقم رصيد افتتاجى 2018 | D17: 476 | E17: 48 | G17: 0 | I17: 22848 | J17: 0 | K17: =K16+D17-F17 -> 476
A18: 2018-01-17 | B18: 35 | C18: أذن رقم 249 | F18: 12 | G18: 48 | H18: 63 | I18: 0 | J18: 576 | K18: 464
A19: 2018-01-13 | B19: 76 | C19: أذن رقم 555 - 559 | F19: 6 | G19: 48 | H19: 57 | I19: 0 | J19: 288 | K19: 458
A20: 2018-02-06 | B20: 99 | C20: أذن رقم 268 - 269 | F20: 36 | G20: 48 | H20: 50 | I20: 0 | J20: 1728 | K20: 422
A21: 2018-02-07 | B21: 100 | C21: الهنا أذن رقم 701 - 702 | D21: 120 | E21: 48 | G21: 0 | I21: 5760 | J21: 0 | K21: 542
A22: 2018-02-08 | B22: 102 | C22: عميل أذن رقم 270 - 271 | F22: 120 | G22: 48 | H22: 50 | I22: 0 | J22: 5760 | K22: 422
A23: 2018-02-17 | B23: 122 | C23: أذن رقم 583 - 585 | F23: 1 | G23: 48 | H23: 94.47 | I23: 0 | J23: 48 | K23: 421
A24: 2018-02-17 | B24: 128 | C24: أذن رقم 593 - 594 | F24: 1 | G24: 48 | H24: 94.47 | I24: 0 | J24: 48 | K24: 420
A25: 2018-02-18 | B25: 142 | C25: أذن رقم 608 - 610 | F25: 2 | G25: 48 | H25: 94.47 | I25: 0 | J25: 96 | K25: 418
A26: 2018-02-21 | B26: 157 | C26: أذن رقم 1079 - 1082 | F26: 10 | G26: 48 | H26: 94.5 | I26: 0 | J26: 480 | K26: 408
A27: 2018-02-24 | B27: 167 | C27: أذن رقم 1085 - 1089 | F27: 12 | G27: 48 | H27: 66 | I27: 0 | J27: 576 | K27: 396
A28: 01/01/208 | B28: 100 | C28: رصيد بداية المدة | D28: 200 | E28: 100 | F28: 20 | G28: 100 | H28: 100 | I28: 20000 | J28: 2000 | K28: 576
I29: 0 | J29: 0 | K29: 576
I30: 0 | J30: 0 | K30: 576
I31: 0 | J31: 0 | K31: 576
I32: 0 | J32: 0 | K32: 576
I33: 0 | J33: 0 | K33: 576
I34: 0 | J34: 0 | K34: 576
I35: 0 | J35: 0 | K35: 576
I36: 0 | J36: 0 | K36: 576
I37: 0 | J37: 0 | K37: 576
I38: 0 | J38: 0 | K38: 576
I39: 0 | J39: 0 | K39: 576
I40: 0 | J40: 0 | K40: 576
I41: 0 | J41: 0 | K41: 576
I42: 0 | J42: 0 | K42: 576
I43: 0 | J43: 0 | K43: 576
I44: 0 | J44: 0 | K44: 576
I45: 0 | J45: 0 | K45: 576
I46: 0 | J46: 0 | K46: 576
I47: 0 | J47: 0 | K47: 576
I48: 0 | J48: 0 | K48: 576
I49: 0 | J49: 0 | K49: 576
I50: 0 | J50: 0 | K50: 576
I51: 0 | J51: 0 | K51: 576
I52: 0 | J52: 0 | K52: 576
I53: 0 | J53: 0 | K53: 576
I54: 0 | J54: 0 | K54: 576
I55: 0 | J55: 0 | K55: 576
I56: 0 | J56: 0 | K56: 576
I57: 0 | J57: 0 | K57: 576
I58: 0 | J58: 0 | K58: 576
I59: 0 | J59: 0 | K59: 576
I60: 0 | J60: 0 | K60: 576
I61: 0 | J61: 0 | K61: 576
I62: 0 | J62: 0 | K62: 576
I63: 0 | J63: 0 | K63: 576
I64: 0 | J64: 0 | K64: 576
I65: 0 | J65: 0 | K65: 576
I66: 0 | J66: 0 | K66: 576
I67: 0 | J67: 0 | K67: 576
I68: 0 | J68: 0 | K68: 576
I69: 0 | J69: 0 | K69: 576
I70: 0 | J70: 0 | K70: 576
I71: 0 | J71: 0 | K71: 576
I72: 0 | J72: 0 | K72: 576
I73: 0 | J73: 0 | K73: 576
I74: 0 | J74: 0 | K74: 576
I75: 0 | J75: 0 | K75: 576
I76: 0 | J76: 0 | K76: 576
I77: 0 | J77: 0 | K77: 576
I78: 0 | J78: 0 | K78: 576
I79: 0 | J79: 0 | K79: 576
I80: =D80*E80 -> 0 | J80: =F80*G80 -> 0 | K80: 576
I81: 0 | J81: 0 | K81: =K80+D81-F81 -> 576
I82: 0 | J82: 0 | K82: 576
I83: 0 | J83: 0 | K83: 576
I84: 0 | J84: 0 | K84: 576
I85: 0 | J85: 0 | K85: 576
I86: 0 | J86: 0 | K86: 576
I87: 0 | J87: 0 | K87: 576
I88: 0 | J88: 0 | K88: 576
I89: 0 | J89: 0 | K89: 576
I90: 0 | J90: 0 | K90: 576
I91: 0 | J91: 0 | K91: 576
I92: 0 | J92: 0 | K92: 576
I93: 0 | J93: 0 | K93: 576
I94: 0 | J94: 0 | K94: 576
I95: 0 | J95: 0 | K95: 576
I96: 0 | J96: 0 | K96: 576
I97: 0 | J97: 0 | K97: 576
I98: 0 | J98: 0 | K98: 576
I99: 0 | J99: 0 | K99: 576
I100: 0 | J100: 0 | K100: 576
I101: 0 | J101: 0 | K101: 576
I102: 0 | J102: 0 | K102: 576
I103: 0 | J103: 0 | K103: 576
I104: 0 | J104: 0 | K104: 576
I105: 0 | J105: 0 | K105: 576
I106: 0 | J106: 0 | K106: 576
I107: 0 | J107: 0 | K107: 576
I108: 0 | J108: 0 | K108: 576
I109: 0 | J109: 0 | K109: 576
I110: 0 | J110: 0 | K110: 576
I111: 0 | J111: 0 | K111: 576
I112: 0 | J112: 0 | K112: 576
I113: 0 | J113: 0 | K113: 576
I114: 0 | J114: 0 | K114: 576
I115: 0 | J115: 0 | K115: 576
I116: 0 | J116: 0 | K116: 576
I117: 0 | J117: 0 | K117: 576
I118: 0 | J118: 0 | K118: 576
I119: 0 | J119: 0 | K119: 576
I120: 0 | J120: 0 | K120: 576
I121: 0 | J121: 0 | K121: 576
I122: 0 | J122: 0 | K122: 576
I123: 0 | J123: 0 | K123: 576
I124: 0 | J124: 0 | K124: 576
I125: 0 | J125: 0 | K125: 576
I126: 0 | J126: 0 | K126: 576
I127: 0 | J127: 0 | K127: 576
I128: 0 | J128: 0 | K128: 576
I129: 0 | J129: 0 | K129: 576
I130: 0 | J130: 0 | K130: 576
I131: 0 | J131: 0 | K131: 576
I132: 0 | J132: 0 | K132: 576
I133: 0 | J133: 0 | K133: 576
I134: 0 | J134: 0 | K134: 576
I135: 0 | J135: 0 | K135: 576
I136: 0 | J136: 0 | K136: 576
I137: 0 | J137: 0 | K137: 576
I138: 0 | J138: 0 | K138: 576
I139: 0 | J139: 0 | K139: 576
I140: 0 | J140: 0 | K140: 576
I141: 0 | J141: 0 | K141: 576
I142: 0 | J142: 0 | K142: 576
I143: 0 | J143: 0 | K143: 576
I144: =D144*E144 -> 0 | J144: =F144*G144 -> 0 | K144: 576
I145: 0 | J145: 0 | K145: =K144+D145-F145 -> 576
I146: 0 | J146: 0 | K146: 576
I147: 0 | J147: 0 | K147: 576
I148: 0 | J148: 0 | K148: 576
I149: 0 | J149: 0 | K149: 576
I150: 0 | J150: 0 | K150: 576
I151: 0 | J151: 0 | K151: 576
D152: =SUM(D16:D151) -> 796 | F152: =SUM(F16:F151) -> 220 | I152: =SUM(I16:I151) -> 48608 | J152: =SUM(J16:J151) -> 11600

Sheet 1-3
A2: المجموعة | D2: زجاج
A3: كود المجموعة | D3: =VLOOKUP(D2,#REF!,2,FALSE) -> 
A4: اسم الصنف | D4: طقم ستانلس
A5: Barcode | D5: =IF(D6>0,(TEXT(LEFT(C8,3),"#000"))&(TEXT(RIGHT(C8,LEN(C8)-4),"#000"))&99&TEXT(D3,"#00")&TEXT(D6,"#000"),"") -> 
A6: كود الصنف | C6: =D3&"-"&D6 ->  | D6: 7
A7: العدد فى الكرتونة | D7: 18
A8: المورد | C8: =VLOOKUP(D8,#REF!,2,FALSE) -> 
F10: الرصيد
A11: الرئيسية | F11: عدد | G11: أخر سعر | H11: اجمالى جم
A12: الكود التالى | B12: =MAX(IF('[1]اجمالى المخزن'!$B$13:$B$1652=$D$3,'[1]اجمالى المخزن'!$C$13:$C$1652))+1 ->  | F12: =D152-F152 -> -185 | G12: =IFERROR(INDEX(E16:E152,MATCH(9.99999999999999E+307,E16:E152)),0) -> 100 | H12: =F12*G12 -> -18500
A14: التاريخ | B14: مسلسل الأذن | C14: البيان | D14: اضافة | F14: خصم | H14: سعر البيع | K14: الرصيد عدد
D15: عدد | E15: سعر | F15: عدد | G15: سعر | I15: اجمالى أضافة | J15: اجمالى خصم
I16: =D16*E16 -> 0 | J16: =F16*G16 -> 0 | K16: =D16 -> 0
A17: 2018-01-01 | B17: 3 | C17: أذن رقم رصيد افتتاجى 2018 | D17: -299 | E17: 9.840317919 | G17: 0 | I17: -2942.255058 | J17: 0 | K17: =K16+D17-F17 -> -299
A18: 2018-02-05 | B18: 94 | C18: أذن رقم 263 - 265 | F18: 6 | G18: 9.840317919 | H18: 21 | I18: 0 | J18: 59.04190751 | K18: -305
A19: 2018-02-21 | B19: 157 | C19: أذن رقم 1079 - 1082 | F19: 12 | G19: 9.840317919 | H19: 20 | I19: 0 | J19: 118.083815 | K19: -317
A20: 2018-03-03 | B20: 233 | C20: أذن رقم 626 - 634 | F20: 24 | G20: 9.840317919 | H20: 15.95 | I20: 0 | J20: 236.1676301 | K20: -341
A21: 2018-07-28 | B21: 664 | C21: أذن رقم 1146 - 1150 | F21: 24 | G21: 9.840317919 | H21: 23.95 | I21: 0 | J21: 236.1676301 | K21: -365
A22: 01/01/208 | B22: 100 | C22: رصيد بداية المدة | D22: 200 | E22: 100 | F22: 20 | G22: 100 | H22: 100 | I22: 20000 | J22: 2000 | K22: -185
I23: 0 | J23: 0 | K23: -185
I24: 0 | J24: 0 | K24: -185
I25: 0 | J25: 0 | K25: -185
I26: 0 | J26: 0 | K26: -185
I27: 0 | J27: 0 | K27: -185
I28: 0 | J28: 0 | K28: -185
I29: 0 | J29: 0 | K29: -185
I30: 0 | J30: 0 | K30: -185
I31: 0 | J31: 0 | K31: -185
I32: 0 | J32: 0 | K32: -185
I33: 0 | J33: 0 | K33: -185
I34: 0 | J34: 0 | K34: -185
I35: 0 | J35: 0 | K35: -185
I36: 0 | J36: 0 | K36: -185
I37: 0 | J37: 0 | K37: -185
I38: 0 | J38: 0 | K38: -185
I39: 0 | J39: 0 | K39: -185
I40: 0 | J40: 0 | K40: -185
I41: 0 | J41: 0 | K41: -185
I42: 0 | J42: 0 | K42: -185
I43: 0 | J43: 0 | K43: -185
I44: 0 | J44: 0 | K44: -185
I45: 0 | J45: 0 | K45: -185
I46: 0 | J46: 0 | K46: -185
I47: 0 | J47: 0 | K47: -185
I48: 0 | J48: 0 | K48: -185
I49: 0 | J49: 0 | K49: -185
I50: 0 | J50: 0 | K50: -185
I51: 0 | J51: 0 | K51: -185
I52: 0 | J52: 0 | K52: -185
I53: 0 | J53: 0 | K53: -185
I54: 0 | J54: 0 | K54: -185
I55: 0 | J55: 0 | K55: -185
I56: 0 | J56: 0 | K56: -185
I57: 0 | J57: 0 | K57: -185
I58: 0 | J58: 0 | K58: -185
I59: 0 | J59: 0 | K59: -185
I60: 0 | J60: 0 | K60: -185
I61: 0 | J61: 0 | K61: -185
I62: 0 | J62: 0 | K62: -185
I63: 0 | J63: 0 | K63: -185
I64: 0 | J64: 0 | K64: -185
I65: 0 | J65: 0 | K65: -185
I66: 0 | J66: 0 | K66: -185
I67: 0 | J67: 0 | K67: -185
I68: 0 | J68: 0 | K68: -185
I69: 0 | J69: 0 | K69: -185
I70: 0 | J70: 0 | K70: -185
I71: 0 | J71: 0 | K71: -185
I72: 0 | J72: 0 | K72: -185
I73: 0 | J73: 0 | K73: -185
I74: 0 | J74: 0 | K74: -185
I75: 0 | J75: 0 | K75: -185
I76: 0 | J76: 0 | K76: -185
I77: 0 | J77: 0 | K77: -185
I78: 0 | J78: 0 | K78: -185
I79: 0 | J79: 0 | K79: -185
I80: =D80*E80 -> 0 | J80: =F80*G80 -> 0 | K80: -185
I81: 0 | J81: 0 | K81: =K80+D81-F81 -> -185
I82: 0 | J82: 0 | K82: -185
I83: 0 | J83: 0 | K83: -185
I84: 0 | J84: 0 | K84: -185
I85: 0 | J85: 0 | K85: -185
I86: 0 | J86: 0 | K86: -185
I87: 0 | J87: 0 | K87: -185
I88: 0 | J88: 0 | K88: -185
I89: 0 | J89: 0 | K89: -185
I90: 0 | J90: 0 | K90: -185
I91: 0 | J91: 0 | K91: -185
I92: 0 | J92: 0 | K92: -185
I93: 0 | J93: 0 | K93: -185
I94: 0 | J94: 0 | K94: -185
I95: 0 | J95: 0 | K95: -185
I96: 0 | J96: 0 | K96: -185
I97: 0 | J97: 0 | K97: -185
I98: 0 | J98: 0 | K98: -185
I99: 0 | J99: 0 | K99: -185
I100: 0 | J100: 0 | K100: -185
I101: 0 | J101: 0 | K101: -185
I102: 0 | J102: 0 | K102: -185
I103: 0 | J103: 0 | K103: -185
I104: 0 | J104: 0 | K104: -185
I105: 0 | J105: 0 | K105: -185
I106: 0 | J106: 0 | K106: -185
I107: 0 | J107: 0 | K107: -185
I108: 0 | J108: 0 | K108: -185
I109: 0 | J109: 0 | K109: -185
I110: 0 | J110: 0 | K110: -185
I111: 0 | J111: 0 | K111: -185
I112: 0 | J112: 0 | K112: -185
I113: 0 | J113: 0 | K113: -185
I114: 0 | J114: 0 | K114: -185
I115: 0 | J115: 0 | K115: -185
I116: 0 | J116: 0 | K116: -185
I117: 0 | J117: 0 | K117: -185
I118: 0 | J118: 0 | K118: -185
I119: 0 | J119: 0 | K119: -185
I120: 0 | J120: 0 | K120: -185
I121: 0 | J121: 0 | K121: -185
I122: 0 | J122: 0 | K122: -185
I123: 0 | J123: 0 | K123: -185
I124: 0 | J124: 0 | K124: -185
I125: 0 | J125: 0 | K125: -185
I126: 0 | J126: 0 | K126: -185
I127: 0 | J127: 0 | K127: -185
I128: 0 | J128: 0 | K128: -185
I129: 0 | J129: 0 | K129: -185
I130: 0 | J130: 0 | K130: -185
I131: 0 | J131: 0 | K131: -185
I132: 0 | J132: 0 | K132: -185
I133: 0 | J133: 0 | K133: -185
I134: 0 | J134: 0 | K134: -185
I135: 0 | J135: 0 | K135: -185
I136: 0 | J136: 0 | K136: -185
I137: 0 | J137: 0 | K137: -185
I138: 0 | J138: 0 | K138: -185
I139: 0 | J139: 0 | K139: -185
I140: 0 | J140: 0 | K140: -185
I141: 0 | J141: 0 | K141: -185
I142: 0 | J142: 0 | K142: -185
I143: 0 | J143: 0 | K143: -185
I144: =D144*E144 -> 0 | J144: =F144*G144 -> 0 | K144: -185
I145: 0 | J145: 0 | K145: =K144+D145-F145 -> -185
I146: 0 | J146: 0 | K146: -185
I147: 0 | J147: 0 | K147: -185
I148: 0 | J148: 0 | K148: -185
I149: 0 | J149: 0 | K149: -185
I150: 0 | J150: 0 | K150: -185
I151: 0 | J151: 0 | K151: -185
D152: =SUM(D16:D151) -> -99 | F152: =SUM(F16:F151) -> 86 | I152: =SUM(I16:I151) -> 17057.74494 | J152: =SUM(J16:J151) -> 2649.460983

Sheet 1-4
A2: المجموعة | D2: بورسلين
A3: كود المجموعة | D3: =VLOOKUP(D2,#REF!,2,FALSE) -> 
A4: اسم الصنف | D4: طقم نحاس
A5: Barcode | D5: =IF(D6>0,(TEXT(LEFT(C8,3),"#000"))&(TEXT(RIGHT(C8,LEN(C8)-4),"#000"))&99&TEXT(D3,"#00")&TEXT(D6,"#000"),"") -> 
A6: كود الصنف | C6: =D3&"-"&D6 ->  | D6: 2
A7: العدد فى الكرتونة | D7: 9
A8: المورد | C8: =VLOOKUP(D8,#REF!,2,FALSE) -> 
F10: الرصيد
A11: الرئيسية | F11: عدد | G11: أخر سعر | H11: اجمالى جم
A12: الكود التالى | B12: =MAX(IF('[1]اجمالى المخزن'!$B$13:$B$1652=$D$3,'[1]اجمالى المخزن'!$C$13:$C$1652))+1 ->  | F12: =D152-F152 -> 148 | G12: =IFERROR(INDEX(E16:E152,MATCH(9.99999999999999E+307,E16:E152)),0) -> 100 | H12: =F12*G12 -> 14800
A14: التاريخ | B14: مسلسل الأذن | C14: البيان | D14: اضافة | F14: خصم | H14: سعر البيع | K14: الرصيد عدد
D15: عدد | E15: سعر | F15: عدد | G15: سعر | I15: اجمالى أضافة | J15: اجمالى خصم
I16: =D16*E16 -> 0 | J16: =F16*G16 -> 0 | K16: =D16 -> 0
A17: 2018-01-01 | B17: 6 | C17: أذن رقم رصيد افتتاجى 2018 | D17: 0 | E17: 19.40210129 | G17: 0 | I17: 0 | J17: 0 | K17: =K16+D17-F17 -> 0
A18: 2018-01-03 | B18: 10 | C18: أذن رقم 4039 | D18: 64 | E18: 10 | G18: 0 | I18: 640 | J18: 0 | K18: 64
A19: 2018-01-18 | B19: 39 | C19: أذن رقم 251 | F19: 4 | G19: 10 | H19: 15 | I19: 0 | J19: 40 | K19: 60
A20: 2018-01-04 | B20: 70 | C20: أذن رقم 1063 - 1068 | F20: 60 | G20: 10 | H20: 15 | I20: 0 | J20: 600 | K20: 0
A21: 2018-03-04 | B21: 243 | C21: أذن رقم 286 - 287 | F21: 32 | G21: 10 | H21: 15 | I21: 0 | J21: 320 | K21: -32
A22: 01/01/208 | B22: 100 | C22: رصيد بداية المدة | D22: 200 | E22: 100 | F22: 20 | G22: 100 | H22: 100 | I22: 20000 | J22: 2000 | K22: 148
I23: 0 | J23: 0 | K23: 148
I24: 0 | J24: 0 | K24: 148
I25: 0 | J25: 0 | K25: 148
I26: 0 | J26: 0 | K26: 148
I27: 0 | J27: 0 | K27: 148
I28: 0 | J28: 0 | K28: 148
I29: 0 | J29: 0 | K29: 148
I30: 0 | J30: 0 | K30: 148
I31: 0 | J31: 0 | K31: 148
I32: 0 | J32: 0 | K32: 148
I33: 0 | J33: 0 | K33: 148
I34: 0 | J34: 0 | K34: 148
I35: 0 | J35: 0 | K35: 148
I36: 0 | J36: 0 | K36: 148
I37: 0 | J37: 0 | K37: 148
I38: 0 | J38: 0 | K38: 148
I39: 0 | J39: 0 | K39: 148
I40: 0 | J40: 0 | K40: 148
I41: 0 | J41: 0 | K41: 148
I42: 0 | J42: 0 | K42: 148
I43: 0 | J43: 0 | K43: 148
I44: 0 | J44: 0 | K44: 148
I45: 0 | J45: 0 | K45: 148
I46: 0 | J46: 0 | K46: 148
I47: 0 | J47: 0 | K47: 148
I48: 0 | J48: 0 | K48: 148
I49: 0 | J49: 0 | K49: 148
I50: 0 | J50: 0 | K50: 148
I51: 0 | J51: 0 | K51: 148
I52: 0 | J52: 0 | K52: 148
I53: 0 | J53: 0 | K53: 148
I54: 0 | J54: 0 | K54: 148
I55: 0 | J55: 0 | K55: 148
I56: 0 | J56: 0 | K56: 148
I57: 0 | J57: 0 | K57: 148
I58: 0 | J58: 0 | K58: 148
I59: 0 | J59: 0 | K59: 148
I60: 0 | J60: 0 | K60: 148
I61: 0 | J61: 0 | K61: 148
I62: 0 | J62: 0 | K62: 148
I63: 0 | J63: 0 | K63: 148
I64: 0 | J64: 0 | K64: 148
I65: 0 | J65: 0 | K65: 148
I66: 0 | J66: 0 | K66: 148
I67: 0 | J67: 0 | K67: 148
I68: 0 | J68: 0 | K68: 148
I69: 0 | J69: 0 | K69: 148
I70: 0 | J70: 0 | K70: 148
I71: 0 | J71: 0 | K71: 148
I72: 0 | J72: 0 | K72: 148
I73: 0 | J73: 0 | K73: 148
I74: 0 | J74: 0 | K74: 148
I75: 0 | J75: 0 | K75: 148
I76: 0 | J76: 0 | K76: 148
I77: 0 | J77: 0 | K77: 148
I78: 0 | J78: 0 | K78: 148
I79: 0 | J79: 0 | K79: 148
I80: =D80*E80 -> 0 | J80: =F80*G80 -> 0 | K80: 148
I81: 0 | J81: 0 | K81: =K80+D81-F81 -> 148
I82: 0 | J82: 0 | K82: 148
I83: 0 | J83: 0 | K83: 148
I84: 0 | J84: 0 | K84: 148
I85: 0 | J85: 0 | K85: 148
I86: 0 | J86: 0 | K86: 148
I87: 0 | J87: 0 | K87: 148
I88: 0 | J88: 0 | K88: 148
I89: 0 | J89: 0 | K89: 148
I90: 0 | J90: 0 | K90: 148
I91: 0 | J91: 0 | K91: 148
I92: 0 | J92: 0 | K92: 148
I93: 0 | J93: 0 | K93: 148
I94: 0 | J94: 0 | K94: 148
I95: 0 | J95: 0 | K95: 148
I96: 0 | J96: 0 | K96: 148
I97: 0 | J97: 0 | K97: 148
I98: 0 | J98: 0 | K98: 148
I99: 0 | J99: 0 | K99: 148
I100: 0 | J100: 0 | K100: 148
I101: 0 | J101: 0 | K101: 148
I102: 0 | J102: 0 | K102: 148
I103: 0 | J103: 0 | K103: 148
I104: 0 | J104: 0 | K104: 148
I105: 0 | J105: 0 | K105: 148
I106: 0 | J106: 0 | K106: 148
I107: 0 | J107: 0 | K107: 148
I108: 0 | J108: 0 | K108: 148
I109: 0 | J109: 0 | K109: 148
I110: 0 | J110: 0 | K110: 148
I111: 0 | J111: 0 | K111: 148
I112: 0 | J112: 0 | K112: 148
I113: 0 | J113: 0 | K113: 148
I114: 0 | J114: 0 | K114: 148
I115: 0 | J115: 0 | K115: 148
I116: 0 | J116: 0 | K116: 148
I117: 0 | J117: 0 | K117: 148
I118: 0 | J118: 0 | K118: 148
I119: 0 | J119: 0 | K119: 148
I120: 0 | J120: 0 | K120: 148
I121: 0 | J121: 0 | K121: 148
I122: 0 | J122: 0 | K122: 148
I123: 0 | J123: 0 | K123: 148
I124: 0 | J124: 0 | K124: 148
I125: 0 | J125: 0 | K125: 148
I126: 0 | J126: 0 | K126: 148
I127: 0 | J127: 0 | K127: 148
I128: 0 | J128: 0 | K128: 148
I129: 0 | J129: 0 | K129: 148
I130: 0 | J130: 0 | K130: 148
I131: 0 | J131: 0 | K131: 148
I132: 0 | J132: 0 | K132: 148
I133: 0 | J133: 0 | K133: 148
I134: 0 | J134: 0 | K134: 148
I135: 0 | J135: 0 | K135: 148
I136: 0 | J136: 0 | K136: 148
I137: 0 | J137: 0 | K137: 148
I138: 0 | J138: 0 | K138: 148
I139: 0 | J139: 0 | K139: 148
I140: 0 | J140: 0 | K140: 148
I141: 0 | J141: 0 | K141: 148
I142: 0 | J142: 0 | K142: 148
I143: 0 | J143: 0 | K143: 148
I144: =D144*E144 -> 0 | J144: =F144*G144 -> 0 | K144: 148
I145: 0 | J145: 0 | K145: =K144+D145-F145 -> 148
I146: 0 | J146: 0 | K146: 148
I147: 0 | J147: 0 | K147: 148
I148: 0 | J148: 0 | K148: 148
I149: 0 | J149: 0 | K149: 148
I150: 0 | J150: 0 | K150: 148
I151: 0 | J151: 0 | K151: 148
D152: =SUM(D16:D151) -> 264 | F152: =SUM(F16:F151) -> 116 | I152: =SUM(I16:I151) -> 20640 | J152: =SUM(J16:J151) -> 2960
